[Event "Titled Tuesday Blitz July 05 Early 2022"]
[White "Kamsky, Gata"]
[Black "Nguyen, Quoc Hy"]
[WhiteFideId "2000024"]
[BlackFideId "12410853"]
[WhiteElo "2645"]
[BlackElo "1938"]
[Result "1-0"]
[Round "02"]
[TimeControl "180+1"]
[Date "2022.07.05"]
[WhiteClock "0:00:30"]
[BlackClock "0:00:01"]

1. e4 {[%clk 0:03:00]}  c5 {[%clk 0:02:58]} 2. Nf3 {[%clk 0:02:57]}  Nc6 {[%clk 0:02:57]} 3. d4 {[%clk 0:02:54]}  cxd4 {[%clk 0:02:58]} 4. Nxd4 {[%clk 0:02:53]}  Nf6 {[%clk 0:02:59]} 5. Nc3 {[%clk 0:02:51]}  e5 {[%clk 0:02:59]} 6. Ndb5 {[%clk 0:02:50]}  d6 {[%clk 0:02:59]} 7. Bg5 {[%clk 0:02:47]}  a6 {[%clk 0:02:59]} 8. Na3 {[%clk 0:02:46]}  b5 {[%clk 0:02:59]} 9. Nd5 {[%clk 0:02:45]}  Be7 {[%clk 0:02:51]} 10. Bxf6 {[%clk 0:02:45]}  Bxf6 {[%clk 0:02:51]} 11. c3 {[%clk 0:02:43]}  O-O {[%clk 0:02:47]} 12. Nc2 {[%clk 0:02:41]}  Bg5 {[%clk 0:02:45]} 13. Be2 {[%clk 0:02:40]}  Be6 {[%clk 0:02:43]} 14. O-O {[%clk 0:02:37]}  Ne7 {[%clk 0:02:41]} 15. Nce3 {[%clk 0:02:28]}  Bxe3 {[%clk 0:02:18]} 16. Nxe3 {[%clk 0:02:27]}  d5 {[%clk 0:02:19]} 17. exd5 {[%clk 0:01:27]}  Nxd5 {[%clk 0:02:19]} 18. Nxd5 {[%clk 0:01:24]}  Bxd5 {[%clk 0:02:19]} 19. a4 {[%clk 0:01:24]}  Rb8 {[%clk 0:01:41]} 20. axb5 {[%clk 0:01:22]}  axb5 {[%clk 0:01:42]} 21. Qc1 {[%clk 0:01:15]}  Rb6 {[%clk 0:01:38]} 22. Qe3 {[%clk 0:01:13]}  Rg6 {[%clk 0:01:28]} 23. f3 {[%clk 0:01:07]}  Bc4 {[%clk 0:01:12]} 24. Bxc4 {[%clk 0:01:03]}  bxc4 {[%clk 0:01:11]} 25. Qxe5 {[%clk 0:01:02]}  Re8 {[%clk 0:01:05]} 26. Qd4 {[%clk 0:00:59]}  Qxd4+ {[%clk 0:00:45]} 27. cxd4 {[%clk 0:00:58]}  h5 {[%clk 0:00:38]} 28. Rac1 {[%clk 0:00:53]}  h4 {[%clk 0:00:30]} 29. Rf2 {[%clk 0:00:43]}  h3 {[%clk 0:00:24]} 30. g3 {[%clk 0:00:41]}  Rd6 {[%clk 0:00:23]} 31. Rd2 {[%clk 0:00:40]}  Rc8 {[%clk 0:00:21]} 32. g4 {[%clk 0:00:40]}  Rb6 {[%clk 0:00:17]} 33. Kf2 {[%clk 0:00:39]}  g5 {[%clk 0:00:14]} 34. Kg3 {[%clk 0:00:39]}  Rh6 {[%clk 0:00:13]} 35. d5 {[%clk 0:00:37]}  Kf8 {[%clk 0:00:13]} 36. d6 {[%clk 0:00:37]}  Rd8 {[%clk 0:00:13]} 37. Rxc4 {[%clk 0:00:36]}  Rhxd6 {[%clk 0:00:12]} 38. Rxd6 {[%clk 0:00:36]}  Rxd6 {[%clk 0:00:13]} 39. Kxh3 {[%clk 0:00:36]}  Rb6 {[%clk 0:00:12]} 40. b4 {[%clk 0:00:35]}  Kg7 {[%clk 0:00:08]} 41. Kg3 {[%clk 0:00:35]}  Kg6 {[%clk 0:00:08]} 42. Re4 {[%clk 0:00:35]}  f5 {[%clk 0:00:08]} 43. gxf5+ {[%clk 0:00:35]}  Kxf5 {[%clk 0:00:09]} 44. Rc4 {[%clk 0:00:35]}  Rb8 {[%clk 0:00:08]} 45. Rc5+ {[%clk 0:00:35]}  Kf6 {[%clk 0:00:08]} 46. b5 {[%clk 0:00:35]}  Kg6 {[%clk 0:00:08]} 47. Kg4 {[%clk 0:00:35]}  Rh8 {[%clk 0:00:05]} 48. Rxg5+ {[%clk 0:00:34]}  Kf6 {[%clk 0:00:06]} 49. h4 {[%clk 0:00:35]}  Rc8 {[%clk 0:00:05]} 50. h5 {[%clk 0:00:35]}  Rc1 {[%clk 0:00:04]} 51. Rg6+ {[%clk 0:00:34]}  Kf7 {[%clk 0:00:04]} 52. b6 {[%clk 0:00:34]}  Rc4+ {[%clk 0:00:03]} 53. f4 {[%clk 0:00:33]}  Rc1 {[%clk 0:00:03]} 54. Kg5 {[%clk 0:00:32]}  Rb1 {[%clk 0:00:02]} 55. Rf6+ {[%clk 0:00:30]}  Kg8 {[%clk 0:00:01]} 56. Rc6 {[%clk 0:00:30]} 1-0


[Site "https://www.chess.com"]

[Event "Titled Tuesday Blitz July 05 Early 2022"]
[White "Lashkin, Jegor"]
[Black "Gubajdullin, Alexei"]
[WhiteFideId "13907808"]
[BlackFideId "4141202"]
[WhiteElo "2368"]
[BlackElo "2190"]
[Result "1-0"]
[Round "02"]
[TimeControl "180+1"]
[Date "2022.07.05"]
[WhiteClock "0:00:09"]
[BlackClock "0:00:18"]

1. d4 {[%clk 0:03:00]}  g6 {[%clk 0:02:59]} 2. c4 {[%clk 0:03:00]}  Bg7 {[%clk 0:02:59]} 3. Nc3 {[%clk 0:03:01]}  d6 {[%clk 0:02:59]} 4. e4 {[%clk 0:03:01]}  Nf6 {[%clk 0:02:59]} 5. Be2 {[%clk 0:02:59]}  O-O {[%clk 0:02:59]} 6. Nf3 {[%clk 0:03:00]}  Na6 {[%clk 0:02:59]} 7. O-O {[%clk 0:02:59]}  e5 {[%clk 0:02:59]} 8. Be3 {[%clk 0:03:00]}  c6 {[%clk 0:02:59]} 9. d5 {[%clk 0:03:00]}  Ng4 {[%clk 0:02:58]} 10. Bg5 {[%clk 0:03:00]}  f6 {[%clk 0:02:58]} 11. Bc1 {[%clk 0:02:59]}  c5 {[%clk 0:02:54]} 12. Ne1 {[%clk 0:02:46]}  Nh6 {[%clk 0:02:51]} 13. Nd3 {[%clk 0:02:29]}  f5 {[%clk 0:02:50]} 14. exf5 {[%clk 0:02:19]}  gxf5 {[%clk 0:02:40]} 15. f3 {[%clk 0:02:10]}  Nb4 {[%clk 0:02:37]} 16. Nf2 {[%clk 0:02:01]}  Nf7 {[%clk 0:02:33]} 17. a3 {[%clk 0:02:00]}  Na6 {[%clk 0:02:33]} 18. Bd3 {[%clk 0:02:00]}  Qh4 {[%clk 0:02:26]} 19. g3 {[%clk 0:01:46]}  Qh5 {[%clk 0:02:17]} 20. f4 {[%clk 0:01:27]}  Qg6 {[%clk 0:02:16]} 21. Bd2 {[%clk 0:01:25]}  h5 {[%clk 0:02:10]} 22. Kh1 {[%clk 0:01:21]}  Nh6 {[%clk 0:02:05]} 23. fxe5 {[%clk 0:01:05]}  dxe5 {[%clk 0:02:04]} 24. Qe2 {[%clk 0:01:03]}  e4 {[%clk 0:02:03]} 25. Bc2 {[%clk 0:01:02]}  Ng4 {[%clk 0:02:03]} 26. Nh3 {[%clk 0:00:57]}  h4 {[%clk 0:01:52]} 27. Nf4 {[%clk 0:00:57]}  Qh7 {[%clk 0:01:51]} 28. gxh4 {[%clk 0:00:54]}  e3 {[%clk 0:01:38]} 29. Bxe3 {[%clk 0:00:49]}  Re8 {[%clk 0:01:37]} 30. Ne6 {[%clk 0:00:43]}  Bxe6 {[%clk 0:01:23]} 31. dxe6 {[%clk 0:00:43]}  Qxh4 {[%clk 0:01:05]} 32. Bxf5 {[%clk 0:00:39]}  Nxe3 {[%clk 0:00:37]} 33. Qxe3 {[%clk 0:00:40]}  Bd4 {[%clk 0:00:33]} 34. Qf3 {[%clk 0:00:35]}  Re7 {[%clk 0:00:28]} 35. Rae1 {[%clk 0:00:26]}  Kh8 {[%clk 0:00:26]} 36. Re4 {[%clk 0:00:25]}  Qh6 {[%clk 0:00:21]} 37. Nd5 {[%clk 0:00:20]}  Rg7 {[%clk 0:00:21]} 38. e7 {[%clk 0:00:17]}  Re8 {[%clk 0:00:19]} 39. Bd7 {[%clk 0:00:11]}  Qg5 {[%clk 0:00:18]} 40. Qh3+ {[%clk 0:00:09]} 1-0


[Site "https://www.chess.com"]

[Event "Titled Tuesday Blitz July 05 Early 2022"]
[White "Lazavik, Denis"]
[Black "Chernobay, Artem"]
[WhiteFideId "13515110"]
[BlackFideId "4167406"]
[WhiteElo "2437"]
[BlackElo "2473"]
[Result "1-0"]
[Round "02"]
[TimeControl "180+1"]
[Date "2022.07.05"]
[WhiteClock "0:00:08"]
[BlackClock "0:00:02"]

1. d4 {[%clk 0:03:00]}  f5 {[%clk 0:02:59]} 2. Nf3 {[%clk 0:02:59]}  Nf6 {[%clk 0:02:59]} 3. g3 {[%clk 0:03:00]}  g6 {[%clk 0:03:00]} 4. Bg2 {[%clk 0:03:01]}  Bg7 {[%clk 0:03:01]} 5. O-O {[%clk 0:03:01]}  O-O {[%clk 0:03:01]} 6. b3 {[%clk 0:03:02]}  d6 {[%clk 0:02:57]} 7. Bb2 {[%clk 0:03:02]}  c6 {[%clk 0:02:46]} 8. c4 {[%clk 0:03:01]}  a5 {[%clk 0:02:45]} 9. Nc3 {[%clk 0:03:01]}  Na6 {[%clk 0:02:37]} 10. Rc1 {[%clk 0:03:01]}  Qe8 {[%clk 0:02:34]} 11. Re1 {[%clk 0:02:56]}  e5 {[%clk 0:02:05]} 12. e4 {[%clk 0:02:50]}  fxe4 {[%clk 0:02:00]} 13. dxe5 {[%clk 0:02:43]}  dxe5 {[%clk 0:01:48]} 14. Nxe4 {[%clk 0:02:40]}  Nxe4 {[%clk 0:01:46]} 15. Rxe4 {[%clk 0:02:41]}  Nc5 {[%clk 0:01:38]} 16. Rxe5 {[%clk 0:02:36]}  Bxe5 {[%clk 0:01:32]} 17. Nxe5 {[%clk 0:02:37]}  Qd8 {[%clk 0:01:18]} 18. Qe1 {[%clk 0:02:31]}  Bf5 {[%clk 0:01:09]} 19. Qe3 {[%clk 0:02:12]}  Qd6 {[%clk 0:00:32]} 20. Ba3 {[%clk 0:01:51]}  Rfe8 {[%clk 0:00:29]} 21. Re1 {[%clk 0:01:49]}  Rad8 {[%clk 0:00:17]} 22. f4 {[%clk 0:01:10]}  b6 {[%clk 0:00:17]} 23. Bxc6 {[%clk 0:00:38]}  Rxe5 {[%clk 0:00:16]} 24. Qxe5 {[%clk 0:00:35]}  Qxc6 {[%clk 0:00:17]} 25. Bb2 {[%clk 0:00:35]}  Ne6 {[%clk 0:00:07]} 26. Qh8+ {[%clk 0:00:25]}  Kf7 {[%clk 0:00:08]} 27. Qxh7+ {[%clk 0:00:23]}  Ke8 {[%clk 0:00:08]} 28. Qh8+ {[%clk 0:00:17]}  Kd7 {[%clk 0:00:07]} 29. Rd1+ {[%clk 0:00:17]}  Kc7 {[%clk 0:00:06]} 30. Rxd8 {[%clk 0:00:17]}  Nxd8 {[%clk 0:00:06]} 31. Qe5+ {[%clk 0:00:15]}  Kc8 {[%clk 0:00:04]} 32. Bd4 {[%clk 0:00:13]}  Ne6 {[%clk 0:00:04]} 33. Be3 {[%clk 0:00:13]}  Bh3 {[%clk 0:00:04]} 34. Qd5 {[%clk 0:00:13]}  Qxd5 {[%clk 0:00:04]} 35. cxd5 {[%clk 0:00:14]}  Nc7 {[%clk 0:00:04]} 36. Bxb6 {[%clk 0:00:14]}  Nxd5 {[%clk 0:00:04]} 37. Bxa5 {[%clk 0:00:15]}  Kd7 {[%clk 0:00:04]} 38. Bd2 {[%clk 0:00:14]}  Nf6 {[%clk 0:00:03]} 39. Bc3 {[%clk 0:00:14]}  Ne4 {[%clk 0:00:03]} 40. Bd4 {[%clk 0:00:12]}  Kc6 {[%clk 0:00:04]} 41. a4 {[%clk 0:00:10]}  Kd5 {[%clk 0:00:04]} 42. Be3 {[%clk 0:00:10]}  Kc6 {[%clk 0:00:03]} 43. b4 {[%clk 0:00:10]}  Kd5 {[%clk 0:00:03]} 44. b5 {[%clk 0:00:09]}  Kc4 {[%clk 0:00:03]} 45. b6 {[%clk 0:00:10]}  Bc8 {[%clk 0:00:03]} 46. a5 {[%clk 0:00:10]}  Kb5 {[%clk 0:00:04]} 47. g4 {[%clk 0:00:08]}  Kxa5 {[%clk 0:00:02]} 48. h4 {[%clk 0:00:08]}  Ka6 {[%clk 0:00:01]} 49. h5 {[%clk 0:00:08]}  gxh5 {[%clk 0:00:01]} 50. gxh5 {[%clk 0:00:09]}  Bf5 {[%clk 0:00:01]} 51. h6 {[%clk 0:00:09]}  Kb7 {[%clk 0:00:02]} 52. Bd4 {[%clk 0:00:10]}  Kc6 {[%clk 0:00:01]} 53. Kg2 {[%clk 0:00:10]}  Nd6 {[%clk 0:00:01]} 54. Kg3 {[%clk 0:00:10]}  Nc4 {[%clk 0:00:01]} 55. Kh4 {[%clk 0:00:10]}  Nxb6 {[%clk 0:00:02]} 56. Kg5 {[%clk 0:00:10]}  Be4 {[%clk 0:00:01]} 57. Bxb6 {[%clk 0:00:07]}  Kxb6 {[%clk 0:00:01]} 58. f5 {[%clk 0:00:08]}  Bxf5 {[%clk 0:00:02]} 59. Kxf5 {[%clk 0:00:08]} 1-0


[Site "https://www.chess.com"]

[Event "Titled Tuesday Blitz July 05 Early 2022"]
[White "Lewtak, Damian"]
[Black "Moiseenko, Alexander"]
[WhiteFideId "1141724"]
[BlackFideId "14102560"]
[WhiteElo "2359"]
[BlackElo "2577"]
[Result "1/2-1/2"]
[Round "02"]
[TimeControl "180+1"]
[Date "2022.07.05"]
[WhiteClock "0:00:06"]
[BlackClock "0:00:05"]

1. e4 {[%clk 0:03:00]}  c5 {[%clk 0:02:59]} 2. Nf3 {[%clk 0:02:59]}  Nc6 {[%clk 0:02:59]} 3. Bb5 {[%clk 0:02:58]}  e6 {[%clk 0:02:59]} 4. Bxc6 {[%clk 0:02:58]}  bxc6 {[%clk 0:03:00]} 5. d3 {[%clk 0:02:59]}  Ne7 {[%clk 0:02:59]} 6. h4 {[%clk 0:02:56]}  d6 {[%clk 0:02:54]} 7. e5 {[%clk 0:02:55]}  Nf5 {[%clk 0:02:52]} 8. c3 {[%clk 0:02:45]}  Be7 {[%clk 0:02:44]} 9. h5 {[%clk 0:02:39]}  dxe5 {[%clk 0:02:36]} 10. g4 {[%clk 0:02:21]}  Nh4 {[%clk 0:02:35]} 11. Nxh4 {[%clk 0:02:20]}  Bxh4 {[%clk 0:02:34]} 12. Qf3 {[%clk 0:02:21]}  O-O {[%clk 0:02:29]} 13. Qe3 {[%clk 0:02:18]}  Be7 {[%clk 0:02:10]} 14. g5 {[%clk 0:02:18]}  Ba6 {[%clk 0:02:08]} 15. c4 {[%clk 0:02:17]}  Qd4 {[%clk 0:01:53]} 16. Qxd4 {[%clk 0:02:16]}  cxd4 {[%clk 0:01:51]} 17. Nd2 {[%clk 0:02:12]}  c5 {[%clk 0:01:45]} 18. Ne4 {[%clk 0:02:11]}  f5 {[%clk 0:01:45]} 19. gxf6 {[%clk 0:02:10]}  gxf6 {[%clk 0:01:45]} 20. Bh6 {[%clk 0:02:06]}  Rf7 {[%clk 0:01:46]} 21. Ke2 {[%clk 0:02:04]}  Bb7 {[%clk 0:01:41]} 22. Rhg1+ {[%clk 0:01:55]}  Kh8 {[%clk 0:01:40]} 23. f3 {[%clk 0:01:51]}  a5 {[%clk 0:01:36]} 24. Rg2 {[%clk 0:01:48]}  Rg8 {[%clk 0:01:31]} 25. Rag1 {[%clk 0:01:43]}  Rxg2+ {[%clk 0:01:30]} 26. Rxg2 {[%clk 0:01:44]}  a4 {[%clk 0:01:20]} 27. Rg1 {[%clk 0:01:33]}  f5 {[%clk 0:00:58]} 28. Nd2 {[%clk 0:01:33]}  Bf8 {[%clk 0:00:46]} 29. Bg5 {[%clk 0:01:23]}  h6 {[%clk 0:00:41]} 30. Bh4 {[%clk 0:01:23]}  Kh7 {[%clk 0:00:39]} 31. b3 {[%clk 0:01:18]}  axb3 {[%clk 0:00:27]} 32. axb3 {[%clk 0:01:11]}  Rg7 {[%clk 0:00:27]} 33. Ra1 {[%clk 0:01:02]}  Rg2+ {[%clk 0:00:23]} 34. Bf2 {[%clk 0:01:02]}  Rg7 {[%clk 0:00:13]} 35. Bh4 {[%clk 0:00:53]}  Bd6 {[%clk 0:00:13]} 36. Kf2 {[%clk 0:00:50]}  Be7 {[%clk 0:00:09]} 37. Bxe7 {[%clk 0:00:45]}  Rxe7 {[%clk 0:00:10]} 38. Re1 {[%clk 0:00:40]}  e4 {[%clk 0:00:07]} 39. fxe4 {[%clk 0:00:34]}  f4 {[%clk 0:00:05]} 40. Ra1 {[%clk 0:00:15]}  e5 {[%clk 0:00:04]} 41. Ra5 {[%clk 0:00:15]}  Kg7 {[%clk 0:00:03]} 42. Rxc5 {[%clk 0:00:15]}  Kf6 {[%clk 0:00:04]} 43. Rb5 {[%clk 0:00:15]}  Bc8 {[%clk 0:00:03]} 44. Rb6+ {[%clk 0:00:15]}  Kg5 {[%clk 0:00:04]} 45. Nf3+ {[%clk 0:00:12]}  Kxh5 {[%clk 0:00:04]} 46. Rb5 {[%clk 0:00:13]}  Kg6 {[%clk 0:00:03]} 47. Nxe5+ {[%clk 0:00:13]}  Kf6 {[%clk 0:00:04]} 48. Nf3 {[%clk 0:00:13]}  Bg4 {[%clk 0:00:04]} 49. e5+ {[%clk 0:00:11]}  Kg6 {[%clk 0:00:03]} 50. Nxd4 {[%clk 0:00:08]}  Ra7 {[%clk 0:00:03]} 51. Rb6+ {[%clk 0:00:01]}  Kh5 {[%clk 0:00:03]} 52. e6 {[%clk 0:00:01]}  Ra2+ {[%clk 0:00:03]} 53. Ke1 {[%clk 0:00:02]}  Ra1+ {[%clk 0:00:03]} 54. Kd2 {[%clk 0:00:02]}  Ra2+ {[%clk 0:00:04]} 55. Kc3 {[%clk 0:00:02]}  f3 {[%clk 0:00:04]} 56. e7 {[%clk 0:00:02]}  Ra8 {[%clk 0:00:04]} 57. Rf6 {[%clk 0:00:02]}  Kg5 {[%clk 0:00:04]} 58. Rf8 {[%clk 0:00:02]}  f2 {[%clk 0:00:03]} 59. Rxf2 {[%clk 0:00:02]}  Re8 {[%clk 0:00:03]} 60. Rf7 {[%clk 0:00:03]}  Kg6 {[%clk 0:00:03]} 61. Rf4 {[%clk 0:00:03]}  h5 {[%clk 0:00:03]} 62. Re4 {[%clk 0:00:04]}  Kf6 {[%clk 0:00:02]} 63. Re3 {[%clk 0:00:04]}  Rxe7 {[%clk 0:00:02]} 64. Rxe7 {[%clk 0:00:05]}  Kxe7 {[%clk 0:00:03]} 65. Kd2 {[%clk 0:00:05]}  h4 {[%clk 0:00:03]} 66. Ke3 {[%clk 0:00:06]}  h3 {[%clk 0:00:04]} 67. Kf2 {[%clk 0:00:07]}  Kd6 {[%clk 0:00:03]} 68. Kg3 {[%clk 0:00:07]}  Ke5 {[%clk 0:00:04]} 69. Nb5 {[%clk 0:00:07]}  Be2 {[%clk 0:00:03]} 70. d4+ {[%clk 0:00:07]}  Kf6 {[%clk 0:00:03]} 71. d5 {[%clk 0:00:08]}  Bg4 {[%clk 0:00:03]} 72. d6 {[%clk 0:00:09]}  Bd7 {[%clk 0:00:03]} 73. Nd4 {[%clk 0:00:09]}  Ke5 {[%clk 0:00:03]} 74. Nf3+ {[%clk 0:00:08]}  Kxd6 {[%clk 0:00:03]} 75. Ng5 {[%clk 0:00:08]}  Kc5 {[%clk 0:00:03]} 76. Nxh3 {[%clk 0:00:08]}  Kb4 {[%clk 0:00:04]} 77. Nf4 {[%clk 0:00:07]}  Kxb3 {[%clk 0:00:04]} 78. c5 {[%clk 0:00:08]}  Kc4 {[%clk 0:00:05]} 79. c6 {[%clk 0:00:06]}  Bxc6 {[%clk 0:00:05]} 1/2-1/2


[Site "https://www.chess.com"]

[Event "Titled Tuesday Blitz July 05 Early 2022"]
[White "Livaic, Leon"]
[Black "Zomorrodian, Eilia"]
[WhiteFideId "14531534"]
[BlackFideId "12551805"]
[WhiteElo "2540"]
[BlackElo "2098"]
[Result "1-0"]
[Round "02"]
[TimeControl "180+1"]
[Date "2022.07.05"]
[WhiteClock "0:00:39"]
[BlackClock "0:00:08"]

1. b3 {[%clk 0:03:00]}  Nf6 {[%clk 0:02:59]} 2. Bb2 {[%clk 0:03:01]}  g6 {[%clk 0:02:59]} 3. e4 {[%clk 0:02:57]}  Bg7 {[%clk 0:02:59]} 4. e5 {[%clk 0:02:58]}  Nd5 {[%clk 0:02:59]} 5. Nf3 {[%clk 0:02:56]}  O-O {[%clk 0:02:59]} 6. g3 {[%clk 0:02:54]}  d6 {[%clk 0:02:59]} 7. Bg2 {[%clk 0:02:52]}  Nc6 {[%clk 0:02:58]} 8. d4 {[%clk 0:02:48]}  Bg4 {[%clk 0:02:52]} 9. h3 {[%clk 0:02:45]}  Bxf3 {[%clk 0:02:49]} 10. Bxf3 {[%clk 0:02:45]}  Nb6 {[%clk 0:02:49]} 11. c4 {[%clk 0:02:28]}  Nd7 {[%clk 0:02:25]} 12. Qe2 {[%clk 0:02:23]}  dxe5 {[%clk 0:02:15]} 13. Bxc6 {[%clk 0:02:24]}  bxc6 {[%clk 0:02:16]} 14. dxe5 {[%clk 0:02:24]}  Nc5 {[%clk 0:02:15]} 15. O-O {[%clk 0:02:20]}  Qd3 {[%clk 0:02:15]} 16. Re1 {[%clk 0:02:21]}  Rfd8 {[%clk 0:02:08]} 17. Nc3 {[%clk 0:02:19]}  Qxe2 {[%clk 0:02:05]} 18. Rxe2 {[%clk 0:02:20]}  Nd3 {[%clk 0:02:05]} 19. Na4 {[%clk 0:02:12]}  Nxb2 {[%clk 0:02:00]} 20. Nxb2 {[%clk 0:02:13]}  Rd4 {[%clk 0:01:38]} 21. Na4 {[%clk 0:02:11]}  Rad8 {[%clk 0:01:37]} 22. Nc5 {[%clk 0:02:10]}  Rd2 {[%clk 0:01:29]} 23. Rae1 {[%clk 0:02:10]}  e6 {[%clk 0:01:24]} 24. Kg2 {[%clk 0:02:06]}  Bf8 {[%clk 0:01:22]} 25. Ne4 {[%clk 0:02:06]}  Rxe2 {[%clk 0:01:08]} 26. Rxe2 {[%clk 0:02:07]}  Bb4 {[%clk 0:01:08]} 27. g4 {[%clk 0:01:49]}  Kg7 {[%clk 0:01:06]} 28. Re3 {[%clk 0:01:20]}  Rd4 {[%clk 0:00:59]} 29. f4 {[%clk 0:01:16]}  Rd1 {[%clk 0:00:55]} 30. a4 {[%clk 0:01:07]}  Ba5 {[%clk 0:00:44]} 31. Nf2 {[%clk 0:00:57]}  Rd2 {[%clk 0:00:38]} 32. Rd3 {[%clk 0:00:57]}  Rb2 {[%clk 0:00:35]} 33. Kf3 {[%clk 0:00:57]}  Rb1 {[%clk 0:00:25]} 34. g5 {[%clk 0:00:46]}  h6 {[%clk 0:00:17]} 35. h4 {[%clk 0:00:46]}  Be1 {[%clk 0:00:13]} 36. Ng4 {[%clk 0:00:46]}  Bxh4 {[%clk 0:00:11]} 37. Nxh6 {[%clk 0:00:43]}  Rf1+ {[%clk 0:00:07]} 38. Kg4 {[%clk 0:00:43]}  Be1 {[%clk 0:00:08]} 39. Rd7 {[%clk 0:00:39]}  Bd2 {[%clk 0:00:08]} 40. Rxd2 {[%clk 0:00:39]} 1-0


[Site "https://www.chess.com"]

[Event "Titled Tuesday Blitz July 05 Early 2022"]
[White "Maksimovic, Bojan"]
[Black "Severino, Sander"]
[WhiteFideId "14408120"]
[BlackFideId "5204100"]
[WhiteElo "2453"]
[BlackElo "2408"]
[Result "0-1"]
[Round "02"]
[TimeControl "180+1"]
[Date "2022.07.05"]
[WhiteClock "0:00:03"]
[BlackClock "0:00:57"]

1. c4 {[%clk 0:03:00]}  e6 {[%clk 0:02:58]} 2. d4 {[%clk 0:02:59]}  d5 {[%clk 0:02:56]} 3. Nf3 {[%clk 0:02:59]}  Nf6 {[%clk 0:02:56]} 4. g3 {[%clk 0:02:59]}  c6 {[%clk 0:02:54]} 5. Bg2 {[%clk 0:02:58]}  Be7 {[%clk 0:02:54]} 6. O-O {[%clk 0:02:58]}  O-O {[%clk 0:02:55]} 7. Qc2 {[%clk 0:02:56]}  Nbd7 {[%clk 0:02:54]} 8. Nbd2 {[%clk 0:02:56]}  b6 {[%clk 0:02:52]} 9. e4 {[%clk 0:02:56]}  Ba6 {[%clk 0:02:51]} 10. Re1 {[%clk 0:02:53]}  Rc8 {[%clk 0:02:51]} 11. e5 {[%clk 0:02:48]}  Ne8 {[%clk 0:02:50]} 12. cxd5 {[%clk 0:02:48]}  cxd5 {[%clk 0:02:49]} 13. Qb1 {[%clk 0:02:29]}  Qc7 {[%clk 0:02:35]} 14. Nf1 {[%clk 0:02:25]}  Qc2 {[%clk 0:02:32]} 15. Be3 {[%clk 0:02:21]}  Qxb1 {[%clk 0:02:29]} 16. Raxb1 {[%clk 0:02:22]}  Nc7 {[%clk 0:02:29]} 17. h4 {[%clk 0:02:18]}  h6 {[%clk 0:02:21]} 18. N1d2 {[%clk 0:02:14]}  Bd3 {[%clk 0:02:19]} 19. Rbc1 {[%clk 0:02:11]}  Na6 {[%clk 0:02:18]} 20. a3 {[%clk 0:02:08]}  b5 {[%clk 0:02:15]} 21. Bf1 {[%clk 0:01:35]}  Bxf1 {[%clk 0:02:14]} 22. Kxf1 {[%clk 0:01:36]}  Nb6 {[%clk 0:02:13]} 23. b4 {[%clk 0:01:25]}  Nc4 {[%clk 0:02:11]} 24. Nxc4 {[%clk 0:01:23]}  dxc4 {[%clk 0:02:09]} 25. d5 {[%clk 0:01:20]}  exd5 {[%clk 0:02:09]} 26. Bxa7 {[%clk 0:01:18]}  Nc7 {[%clk 0:02:08]} 27. Bb6 {[%clk 0:01:12]}  Ne6 {[%clk 0:02:07]} 28. Red1 {[%clk 0:01:13]}  Ra8 {[%clk 0:02:04]} 29. Rc3 {[%clk 0:01:09]}  Bd8 {[%clk 0:02:02]} 30. Be3 {[%clk 0:01:06]}  Nc7 {[%clk 0:01:51]} 31. Nd4 {[%clk 0:01:06]}  Re8 {[%clk 0:01:48]} 32. f4 {[%clk 0:00:36]}  f6 {[%clk 0:01:46]} 33. e6 {[%clk 0:00:20]}  Nxe6 {[%clk 0:01:39]} 34. Nxe6 {[%clk 0:00:21]}  Rxe6 {[%clk 0:01:39]} 35. Rxd5 {[%clk 0:00:22]}  Bb6 {[%clk 0:01:39]} 36. Bxb6 {[%clk 0:00:16]}  Rxb6 {[%clk 0:01:40]} 37. h5 {[%clk 0:00:14]}  Rba6 {[%clk 0:01:32]} 38. Rxb5 {[%clk 0:00:14]}  Rxa3 {[%clk 0:01:32]} 39. Rxa3 {[%clk 0:00:15]}  Rxa3 {[%clk 0:01:33]} 40. Kg2 {[%clk 0:00:15]}  Rb3 {[%clk 0:01:30]} 41. Kh3 {[%clk 0:00:15]}  c3 {[%clk 0:01:28]} 42. Rc5 {[%clk 0:00:14]}  Kf7 {[%clk 0:01:24]} 43. Rc7+ {[%clk 0:00:12]}  Ke6 {[%clk 0:01:23]} 44. Rxg7 {[%clk 0:00:08]}  Kd5 {[%clk 0:01:20]} 45. Kg4 {[%clk 0:00:08]}  Rxb4 {[%clk 0:01:19]} 46. Rd7+ {[%clk 0:00:06]}  Ke4 {[%clk 0:01:16]} 47. Rc7 {[%clk 0:00:07]}  Kd3 {[%clk 0:01:16]} 48. Rd7+ {[%clk 0:00:04]}  Rd4 {[%clk 0:01:15]} 49. Rc7 {[%clk 0:00:05]}  Rc4 {[%clk 0:01:15]} 50. Rd7+ {[%clk 0:00:05]}  Ke2 {[%clk 0:01:14]} 51. Re7+ {[%clk 0:00:05]}  Kf2 {[%clk 0:01:12]} 52. Ra7 {[%clk 0:00:03]}  c2 {[%clk 0:01:08]} 53. Ra2 {[%clk 0:00:03]}  Rc5 {[%clk 0:01:07]} 54. Rb2 {[%clk 0:00:01]}  f5+ {[%clk 0:01:06]} 55. Kh4 {[%clk 0:00:02]}  Kf3 {[%clk 0:01:06]} 56. Rb3+ {[%clk 0:00:01]}  Ke4 {[%clk 0:01:03]} 57. Rb4+ {[%clk 0:00:02]}  Kd5 {[%clk 0:01:03]} 58. Rb3 {[%clk 0:00:01]}  c1=Q {[%clk 0:01:02]} 59. Rd3+ {[%clk 0:00:01]}  Ke4 {[%clk 0:01:01]} 60. g4 {[%clk 0:00:02]}  Kxd3 {[%clk 0:00:58]} 61. gxf5 {[%clk 0:00:02]}  Qxf4+ {[%clk 0:00:57]} 62. Kh3 {[%clk 0:00:03]}  Qxf5+ {[%clk 0:00:57]} 0-1


[Site "https://www.chess.com"]

[Event "Titled Tuesday Blitz July 05 Early 2022"]
[White "Melikyan, Gnel"]
[Black "Andreikin, Dmitry"]
[WhiteFideId "54109990"]
[BlackFideId "4158814"]
[WhiteElo "1772"]
[BlackElo "2736"]
[Result "0-1"]
[Round "02"]
[TimeControl "180+1"]
[Date "2022.07.05"]
[WhiteClock "0:00:39"]
[BlackClock "0:01:53"]

1. e4 {[%clk 0:03:00]}  c5 {[%clk 0:02:58]} 2. Nf3 {[%clk 0:03:00]}  e6 {[%clk 0:02:59]} 3. d4 {[%clk 0:03:00]}  cxd4 {[%clk 0:03:00]} 4. Nxd4 {[%clk 0:03:00]}  Nc6 {[%clk 0:03:01]} 5. Nc3 {[%clk 0:03:00]}  a6 {[%clk 0:03:00]} 6. Nxc6 {[%clk 0:02:59]}  bxc6 {[%clk 0:03:01]} 7. Bd3 {[%clk 0:02:59]}  d5 {[%clk 0:03:01]} 8. O-O {[%clk 0:02:59]}  Nf6 {[%clk 0:03:02]} 9. Qe2 {[%clk 0:02:59]}  Be7 {[%clk 0:03:01]} 10. Rd1 {[%clk 0:02:57]}  O-O {[%clk 0:03:01]} 11. b3 {[%clk 0:02:57]}  Bb7 {[%clk 0:02:55]} 12. Bb2 {[%clk 0:02:56]}  Qc7 {[%clk 0:02:55]} 13. Na4 {[%clk 0:02:54]}  Rfd8 {[%clk 0:02:51]} 14. c4 {[%clk 0:02:53]}  dxe4 {[%clk 0:02:48]} 15. Bxe4 {[%clk 0:02:52]}  Nxe4 {[%clk 0:02:49]} 16. Qxe4 {[%clk 0:02:52]}  c5 {[%clk 0:02:49]} 17. Qg4 {[%clk 0:02:34]}  Bf8 {[%clk 0:02:48]} 18. Rxd8 {[%clk 0:02:23]}  Rxd8 {[%clk 0:02:47]} 19. Rd1 {[%clk 0:02:24]}  Qf4 {[%clk 0:02:39]} 20. Qxg7+ {[%clk 0:01:24]}  Bxg7 {[%clk 0:02:39]} 21. Rxd8+ {[%clk 0:01:24]}  Bf8 {[%clk 0:02:39]} 22. Nxc5 {[%clk 0:01:12]}  Bc6 {[%clk 0:02:15]} 23. Ba3 {[%clk 0:01:08]}  Qg4 {[%clk 0:01:58]} 24. Rxf8+ {[%clk 0:00:51]}  Kxf8 {[%clk 0:01:58]} 25. Nd7+ {[%clk 0:00:51]}  Kg7 {[%clk 0:01:56]} 26. Bb2+ {[%clk 0:00:46]}  f6 {[%clk 0:01:53]} 27. Bxf6+ {[%clk 0:00:39]}  Kh6 {[%clk 0:01:53]} 0-1


[Site "https://www.chess.com"]